Cogmind - Beta 16 *** ADVENTURER MODE // 2025.11.16 @ 17:59:50 Player: Gder Result: Destroyed by S-27 Virus with Autogun Performance ------------- Evolutions (6) 3000 Regions Visited (13) 2600 Robots Destroyed (245) 1225 Value Destroyed (8608) 8608 Prototype IDs (48) 960 Alien Tech Used (2) 400 Bonus (812) 812 TOTAL SCORE: 17605 Bonus ------- Follower Combat Kills 212 Aligned with FarCom 300 Met Zhirov 300 Cogmind --------- Core Integrity 0/1150 Matter 290/300 Energy 100/100 System Corruption 8% Temperature Cool (0) Movement Core (50) Location -4/Factory Parts ------- > --- POWER (2) -------- (None) > --- PROPULSION (5) --- (None) > --- UTILITY (9) ------ (None) > --- WEAPON (3) ------- (None) > --- INVENTORY (5) ---- Centrium Wheel Plasma Rifle Autogun Coil Gun Peak State ------------ > --- POWER ------------ Neutrino Core Micro Fission Core > --- PROPULSION ------- Carbon-fiber Leg Armored Leg Armored Leg Armored Leg Thunder Leg > --- UTILITY ---------- High-capacity Storage Unit Improved Matter Compressor Improved Target Analyzer Improved Target Analyzer Matter Filter Advanced Transmission Jammer Improved Core Shielding Improved Focal Shield System Shield > --- WEAPON ----------- Plasma Rifle Matter Neutralizer Heavy Gauss Cannon > --- INVENTORY -------- Light Nuclear Core Micro Fission Core Myomer Leg Myomer Leg Myomer Leg Myomer Leg Advanced Cryofiber Web Structural Scanner Experimental Core Shielding System Restoration Module Advanced Drone Bay Autogun Coil Gun Coil Gun Micro-nuke Launcher Molecular Deconstructor Chainsword [Rating: 109] Favorites ----------- Power Micro Nuclear Core Engine Improved Deuterium Engine Power Core Micro Nuclear Core Reactor Light Antimatter Reactor Propulsion Armored Leg Treads Light Treads Leg Armored Leg Wheel Compact Wheel Utility High-capacity Storage Unit Device Structural Scanner Storage High-capacity Storage Unit Processor Advanced Targeting Computer Hackware Hacking Suite Protection Hardened Medium Armor Plating Weapon Chainsword Energy Gun Medium Laser Energy Cannon Heavy Plasma Cannon Ballistic Gun Heavy Assault Rifle Ballistic Cannon Advanced Assault Cannon Launcher Precision Grenade Launcher Special Weapon Mining Laser Slashing Weapon Chainsword Build | -11 -10 -10 -10 -9 -8 -7 -6 -5 -5 -5 -5 -4 -4 ------- Run | Yrd Mat Min Exi Min Mat Fac Fac Fac Upp Upp Zhi Pro Fac Slots Evolved 12 | . . . . . 4 2 2 2 . . . . 2 Power 1 | . . . . . . . 1 . . . . . . Propulsion 3 | . . . . . 1 . 1 1 . . . . . Utility 7 | . . . . . 3 2 . . . . . . 2 Weapon 1 | . . . . . . . . 1 . . . . . Parts Attached 161 | 7 7 . 2 . 21 28 20 21 7 11 3 2 32 Power 25 | 1 1 . . . 3 3 4 5 . 2 1 . 5 Engine 10 | 1 1 . . . 2 2 . 3 . . . . 1 Core 13 | . . . . . 1 1 4 2 . 2 . . 3 Reactor 2 | . . . . . . . . . . . 1 . 1 Propulsion 33 | 2 2 . 2 . 2 3 6 4 2 3 . . 7 Treads 1 | 1 . . . . . . . . . . . . . Leg 30 | . 1 . 2 . 2 3 6 4 2 3 . . 7 Wheel 2 | 1 1 . . . . . . . . . . . . Hover . | . . . . . . . . . . . . . . Flight . | . . . . . . . . . . . . . . Utility 64 | 1 4 . . . 7 15 6 8 2 4 2 2 13 Device 28 | . 2 . . . 3 3 2 6 1 2 . 1 8 Storage 8 | 1 2 . . . 1 . 1 . 1 . 1 . 1 Processor 9 | . . . . . 1 5 1 1 . . . . 1 Hackware 5 | . . . . . . 1 . 1 . 2 . . 1 Protection 14 | . . . . . 2 6 2 . . . 1 1 2 Artifact . | . . . . . . . . . . . . . . Weapon 39 | 3 . . . . 9 7 4 4 3 2 . . 7 Energy Gun 3 | 2 . . . . . . . . . . . . 1 Energy Cannon 5 | . . . . . 1 . . 1 1 2 . . . Ballistic Gun 15 | 1 . . . . 6 2 . 2 1 . . . 3 Ballistic Cannon 11 | . . . . . . 3 4 1 1 . . . 2 Launcher 2 | . . . . . 1 1 . . . . . . . Special Weapon 2 | . . . . . 1 . . . . . . . 1 Impact Weapon . | . . . . . . . . . . . . . . Slashing Weapon 1 | . . . . . . 1 . . . . . . . Piercing Weapon . | . . . . . . . . . . . . . . Special Melee Weapon . | . . . . . . . . . . . . . . Unidentified Prototypes 12 | . . . . . . 1 . 3 . . 5 . 3 Parts Lost 92 | . 1 . . . 9 7 8 10 4 16 . . 37 Power 19 | . . . . . 2 1 3 4 . 2 . . 7 Propulsion 21 | . 1 . . . 1 2 1 . 1 3 . . 12 Utility 33 | . . . . . 3 4 3 3 1 8 . . 11 Weapon 19 | . . . . . 3 . 1 3 2 3 . . 7 Highest Loss Streak 15 | . 1 . . . 5 3 5 4 3 15 . . 13 To Critical Strikes 1 | . . . . . . . . . 1 . . . . Average Backups 17 | 3 7 14 18 18 18 19 18 18 18 13 17 17 15 Power 2 | . 1 2 4 5 5 2 1 1 . 1 3 3 2 Propulsion 3 | 1 1 3 3 2 2 3 2 3 6 3 3 3 2 Utility 3 | . . 2 2 3 1 4 4 3 4 . 2 3 5 Weapon 8 | 1 4 6 8 8 7 8 9 10 6 8 9 8 5 Tool/Special . | . . . . . . . . . . . . . . Unused Backups 39 | . . . 2 . 7 9 4 4 1 . 1 4 7 Power 8 | . . . . . 2 3 1 . . . 1 . 1 Propulsion 7 | . . . 1 . 1 1 1 1 . . . 1 1 Utility 7 | . . . 1 . . 3 1 1 . . . . 1 Weapon 17 | . . . . . 4 2 1 2 1 . . 3 4 Tool/Special . | . . . . . . . . . . . . . . Average Slot Usage (%) 96 | . 99 100 98 100 94 99 94 95 89 91 94 99 93 Engine 4 | . 14 14 14 14 4 2 3 5 5 . . . . Core 4 | . . . . . 4 4 5 3 5 8 6 5 5 Treads 1 | . 14 14 8 . . . . . . . . . . Leg 22 | . . . 9 28 24 22 25 25 18 26 29 29 24 Wheel 1 | . 13 14 8 . . . . . . . . . . Device 12 | . 13 14 14 14 19 9 9 16 14 13 11 10 15 Storage 7 | . 14 14 14 14 13 7 6 5 6 6 5 5 6 Processor 11 | . . . . . 5 20 18 9 11 5 5 5 5 Hackware 5 | . . . . . . 6 6 5 5 9 11 11 9 Protection 3 | . . . . . 4 6 4 1 . . . 5 6 Energy Gun 1 | . 14 14 14 14 . . . . . . . . 1 Energy Cannon 1 | . . . . . . . . 3 1 4 5 . 1 Ballistic Gun 5 | . 14 14 14 14 13 4 . 2 4 4 5 5 6 Ballistic Cannon 4 | . . . . . . 4 9 4 7 5 . 10 . Slashing Weapon 2 | . . . . . . 4 2 4 1 . 1 . 2 Peak Build Rating 109 | 6 8 8 27 28 45 61 69 98 95 93 90 96 109 Average Rating 61 | 5 7 8 15 27 40 56 61 77 89 77 83 88 94 On Entrance 47 | . 6 8 8 27 28 41 52 63 90 86 80 83 96 Avg Prop Armor Cover (%) 13 | 13 13 14 14 . . 5 4 . . . . . . Naked Turns 36 | . . . . . . . . . . . . . 36 Heaviest Build 96 | 14 49 49 49 49 67 84 81 87 82 81 91 96 93 Greatest Support 120 | 10 20 16 60 60 75 80 82 92 92 87 80 80 120 Greatest Overweight (x) 16 | 1 3 3 16 . 1 1 1 1 1 2 1 1 2 Average Overweight (x) . | . 1 3 1 . . . . . . . . 1 . Largest Inventory Capacity 20 | 8 20 20 20 20 20 20 20 20 20 20 20 20 20 Average Capacity 19 | 7 13 20 20 20 20 20 20 20 20 20 20 20 19 Most Carried 20 | 5 11 18 20 20 20 20 20 20 20 20 19 20 20 Average Carried 17 | 3 7 14 18 18 18 19 18 18 18 13 17 17 17 Final Capacity 20 | 8 20 20 20 20 20 20 20 20 20 20 20 20 5 Final Carried 20 | 5 10 18 18 20 19 16 18 18 20 15 18 19 4 Class Distribution -------------------- 32% | Hacker-Assassin 20% | Hacker-Skirmisher 17% | Mutant 10% | Hacker-Mutant 5% | Hacker-Gunner 3% | Hacker-Tank 3% | Skirmisher Dominant Class ---------------- Mutant | -10/Materials Mutant | -10/Mines Mutant | -10/Exiles Mutant | -9/Mines Mutant | -8/Materials Hacker-Assassin | -7/Factory Hacker-Skirmisher | -6/Factory Hacker-Assassin | -5/Factory Hacker-Skirmisher | -5/Upper Caves Hacker-Gunner | -5/Upper Caves Hacker-Gunner | -5/Zhirov Hacker-Tank | -4/Proximity Caves Hacker-Mutant | -4/Factory Resources | -11 -10 -10 -10 -9 -8 -7 -6 -5 -5 -5 -5 -4 -4 ----------- Run | Yrd Mat Min Exi Min Mat Fac Fac Fac Upp Upp Zhi Pro Fac Matter Collected 8806 | 286 84 139 21 . 783 1913 1882 940 481 510 409 188 1170 Remotely 22 | . . . . . . . . . . . . . 22 Salvage Created 11646 | 215 460 110 . . 1574 2313 1867 1720 738 653 409 351 1236 Parts 548 | 20 25 13 . . 92 129 74 85 22 21 3 16 48 Haulers Intercepted 11 | . 1 . . . 3 3 2 1 . . . . 1 Recyclers Shooed 19 | . 6 1 . . 1 1 7 3 . . . . . Parts Field Recycled . | . . . . . . . . . . . . . . Retrieved Matter . | . . . . . . . . . . . . . . Parts Self-Destructed 52 | . . . . . . . . . 20 19 2 11 . Prevented 7 | . . . . . . . . . . 2 . 5 . Parts Restored . | . . . . . . . . . . . . . . Kills | -11 -10 -10 -10 -9 -8 -7 -6 -5 -5 -5 -5 -4 -4 ------- Run | Yrd Mat Min Exi Min Mat Fac Fac Fac Upp Upp Zhi Pro Fac Combat Hostiles Destroyed 166 | . 5 3 . . 26 33 26 12 11 14 . 5 31 Melee 8 | . . . . . . 3 1 . . 1 . . 3 Guns 66 | . 5 3 . . 26 14 . 4 4 3 . 2 5 Cannons 79 | . . . . . . 13 25 8 7 9 . 3 14 AOE 12 | . . . . . . 3 . . . . . . 9 Classes Destroyed 17 | 3 4 . . . 1 6 2 . . . . . 1 Worker 21 | 2 1 2 . . 1 7 3 4 . . . . 1 Builder 20 | . 2 1 . . 1 6 3 6 . . . . 1 Tunneler 7 | 5 . . . . . . 1 1 . . . . . Hauler 11 | . 1 . . . 3 3 2 1 . . . . 1 Recycler 30 | 1 3 . . . 2 10 7 6 . . . . 1 Mechanic 1 | . . . . . . . 1 . . . . . . Watcher 2 | . . . . . . 1 1 . . . . . . Swarmer 22 | . 3 3 . . 4 2 3 . 1 5 . . 1 Cutter 1 | . . . . . . 1 . . . . . . . Grunt 57 | . 2 . . . 16 10 11 2 4 5 . 3 4 Brawler 5 | . . . . . . . 2 . 1 2 . . . Duelist 4 | . . . . . . 1 . . 1 1 . 1 . Sentry 15 | . . . . . 6 2 2 1 1 1 . 1 1 Specialist 4 | . . . . . . 2 . 2 . . . . . Hunter 10 | . . . . . . 5 . 1 1 . . . 3 Programmer 35 | . . . . . . 10 8 6 2 . . . 9 Assembled 13 | . . . . . . . . . . . . . 13 Best Kill Streak 13 | 8 4 3 . . 12 6 7 7 5 7 . 4 13 Combat Bots Only 13 | . 2 3 . . 8 6 5 2 5 7 . 4 13 Max Kills in Single Turn 3 | 1 1 1 . . 2 2 2 1 1 2 . 2 3 Gunslinging 1 | . . . . . 1 . . . . . . . . Exploded 3 | . . . . . . 1 . . . . . . 3 Melee 1 | . . . . . . 1 1 . . 1 . . 1 Uniques/NPCs Destroyed . | . . . . . . . . . . . . . . Combat | -11 -10 -10 -10 -9 -8 -7 -6 -5 -5 -5 -5 -4 -4 -------- Run | Yrd Mat Min Exi Min Mat Fac Fac Fac Upp Upp Zhi Pro Fac Hostile Shots Fired 1859 | . 30 8 . 1 218 324 281 197 101 115 . 17 567 Missed 556 | . 8 2 . . 51 100 87 63 31 29 . 3 182 Hits 1303 | . 22 6 . 1 167 224 194 134 70 86 . 14 385 Melee 32 | . . . . . . 3 2 . . 22 . . 5 Projectile 1271 | . 22 6 . 1 167 221 192 134 70 64 . 14 380 AOE 2 | . . . . . . . . . . . . . 2 Critical Strikes 69 | . . . . . 17 8 12 7 2 3 . . 20 Part Disruptions 8 | . . . . . . 1 2 1 . . . . 4 Damage Taken 17954 | . 186 41 . 12 2018 2390 2450 1723 1171 2030 36 205 5692 Core 2752 | . 9 23 . . 359 366 202 199 163 234 12 24 1161 Absorbed by Shields 12 | . . . . . . . 12 . . . . . . Redirected to Shielding 316 | . . . . . . . . . . . . . 316 Ignored by Resistances 5452 | . 61 12 . 3 574 692 689 475 326 527 10 69 2014 Regen/Repaired (Parts) 1372 | . . . . . 63 95 116 677 . . . . 421 Core Remaining (%) 63 | 100 . . . 87 34 47 76 . . . . 34 . Volleys Fired 628 | 16 45 15 . . 116 135 114 61 30 30 1 9 56 Largest 3 | 2 2 2 . . 2 2 2 3 3 3 1 3 3 Hottest 231 | 70 70 70 . . 100 100 84 164 164 196 36 170 231 Shots Fired 1239 | 32 89 30 . . 220 225 211 124 72 75 3 20 138 Gun 639 | 32 89 30 . . 208 118 . 42 26 18 1 6 69 Cannon 576 | . . . . . . 102 211 82 46 57 . 14 64 Launcher 11 | . . . . . . 4 . . . . 2 . 5 Special 13 | . . . . . 12 1 . . . . . . . Kinetic 994 | 16 44 15 . . 208 220 211 76 51 53 1 15 84 Thermal 221 | 16 45 15 . . 12 1 . 48 21 14 . . 49 Explosive 11 | . . . . . . 4 . . . . 2 . 5 Electromagnetic 13 | . . . . . . . . . . 8 . 5 . Robot Hit Streak 43 | 11 23 7 . . 43 37 21 16 21 16 . 10 21 Robot Miss Streak 7 | 1 1 2 . . 2 2 3 3 2 7 . 1 6 Penetration Max 1 | . . . . . . . 1 1 . 1 . 1 1 Secondary Targets 8 | . 1 1 . . 5 1 . . . . . . . Max Gunslinging Chain 1 | . 1 1 . . 1 1 . . . . . . . Shots Hit Robots 1010 | 22 71 20 . . 181 202 170 107 55 56 16 13 97 Core Hits 515 | 13 26 9 . . 70 84 97 57 37 38 5 14 65 Critical Kills 5 | . . . . . . 1 . . . 2 . 1 1 Critical Parts Destroyed 12 | . . . . . . 3 . 2 2 3 . 1 1 Critical Strikes 71 | 1 3 2 . . . 13 16 6 4 11 . 3 12 Burn 9 | 1 3 2 . . . . . . . . . . 3 Destroy 19 | . . . . . . 4 . 2 3 6 . 2 2 Blast 35 | . . . . . . 5 16 2 1 4 . 1 6 Sever 8 | . . . . . . 4 . 2 . 1 . . 1 Melee Attacks 213 | . . . . . . 87 26 49 4 7 16 . 24 Impact . | . . . . . . . . . . . . . . Slashing 213 | . . . . . . 87 26 49 4 7 16 . 24 Piercing . | . . . . . . . . . . . . . . Sneak Attacks 49 | . . . . . . 19 11 15 . . . . 4 Combat Hostiles 1 | . . . . . . 1 . . . . . . . Follow-up Attacks . | . . . . . . . . . . . . . . Damage Inflicted 27994 | 223 726 206 . 10 2774 5717 5370 4075 1828 1546 1199 391 3929 Guns 8082 | 223 726 206 . . 2739 1595 . 921 557 166 . 38 911 Cannons 12229 | . . . . . . 1672 4441 1812 1043 1261 . 353 1647 Explosions 1159 | . . . . . . 288 . . . . 56 . 815 Melee 6366 | . . . . . . 2162 890 1342 228 119 1143 . 482 Ramming 158 | . . . . 10 35 . 39 . . . . . 74 Kinetic 16213 | 86 262 81 . . 2739 3267 4441 1823 1055 938 . 216 1305 Thermal 3906 | 137 464 125 . . . 115 . 910 545 357 . . 1253 Explosive 958 | . . . . . . 173 . . . . 56 . 729 Electromagnetic 393 | . . . . . . . . . . 132 . 175 86 Impact . | . . . . . . . . . . . . . . Slashing 6366 | . . . . . . 2162 890 1342 228 119 1143 . 482 Piercing . | . . . . . . . . . . . . . . Highest Corruption 21 | . . . . . . 3 3 9 10 21 21 21 8 Average Corruption 6 | . . . . . . 1 2 1 9 19 21 21 2 Corruption Purged . | . . . . . . . . . . . . . . Corruption Blocked . | . . . . . . . . . . . . . . Effects 195 | . . . . . . 22 27 7 35 39 21 29 15 Message Errors 43 | . . . . . . 4 7 4 5 8 7 7 1 Matter Fused 42 | . . . . . . 4 8 . 11 6 3 6 4 Heat Flow Errors 16 | . . . . . . 3 4 1 2 1 . 2 3 Energy Discharges 25 | . . . . . . 4 . 1 7 5 2 5 1 Parts Rejected 3 | . . . . . . . . . 2 . . . 1 Parts Fused 3 | . . . . . . . 2 . . 1 . . . Data Loss (minor) 31 | . . . . . . 4 2 . 5 11 4 3 2 Data Loss (major) 11 | . . . . . . 1 3 . . 1 3 3 . Misfires 7 | . . . . . . 1 1 . . 3 2 . . Alerts 1 | . . . . . . . . . . 1 . . . Misdirections 3 | . . . . . . . . . 3 . . . . Weapon Failures 10 | . . . . . . 1 . 1 . 2 . 3 3 Overload Shots . | . . . . . . . . . . . . . . Overflow Damage 1268 | . . . . . . 414 262 278 31 18 147 . 118 Projectiles 157 | . . . . . . 15 33 18 . 18 . . 73 Explosions 104 | . . . . . . 89 . . . . . . 15 Melee 1007 | . . . . . . 310 229 260 31 . 147 . 30 Knockbacks 141 | . . . . . 1 16 78 19 5 8 . 2 12 Impact 1 | . . . . . 1 . . . . . . . . Kinetic 123 | . . . . . . 13 69 18 5 6 . 2 10 Secondary 17 | . . . . . . 3 9 1 . 2 . . 2 Self-Inflicted Damage 153 | . . . . . . 53 . . . . 36 . 64 Shots 4 | . . . . . . 1 . . . . 1 . 2 Rammed 10 | . . . . . . . . . . . . . 10 Targets Rammed 21 | . . . . 1 3 . 6 . . . . . 11 Kicked 11 | . . . . 1 3 . 6 . . . . . 1 Crushed . | . . . . . . . . . . . . . . Highest Temperature 479 | 70 226 100 . . 40 449 479 447 217 357 . 224 473 Average Temperature 86 | 28 60 32 . . 8 108 85 127 49 109 . 112 134 Received Heat Transfer 5676 | . 102 . . 9 1476 786 1110 417 300 291 . 105 1080 Effects 26 | . 2 . . . . 6 8 2 . 4 . . 4 Shutdowns 10 | . . . . . . 1 4 1 . 1 . . 3 Energy Bleed 2 | . . . . . . 1 1 . . . . . . Interference 8 | . 2 . . . . 3 . . . 3 . . . Matter Decay 3 | . . . . . . 1 . 1 . . . . 1 Short Circuit 2 | . . . . . . . 2 . . . . . . Damage (major) 1 | . . . . . . . 1 . . . . . . Siege Activations . | . . . . . . . . . . . . . . Martial Activations . | . . . . . . . . . . . . . . Shielding Activations . | . . . . . . . . . . . . . . Robots Disrupted . | . . . . . . . . . . . . . . Combat Hostiles . | . . . . . . . . . . . . . . Robots Corrupted 1 | . . . . . . . . . . 1 . . . Combat Hostiles 1 | . . . . . . . . . . 1 . . . Parts Fried . | . . . . . . . . . . . . . . Impact Corruptions . | . . . . . . . . . . . . . . Robots Melted . | . . . . . . . . . . . . . . Combat Hostiles . | . . . . . . . . . . . . . . Parts Melted 15 | 1 3 . . . . . . 1 . . . . 10 Heat Transferred 7074 | 481 1591 518 . . . 100 . 1300 850 370 . . 1864 Parts Sabotaged 3 | . . . . . . . . . . 3 . . . Parts Stolen . | . . . . . . . . . . . . . . Parts Stripped . | . . . . . . . . . . . . . . Power Chain Reactions 1 | . . . . . . . . 1 . . . . . Alert | -11 -10 -10 -10 -9 -8 -7 -6 -5 -5 -5 -5 -4 -4 ------- Run | Yrd Mat Min Exi Min Mat Fac Fac Fac Upp Upp Zhi Pro Fac Maximum Alert Level 1 | . . . . . 1 . 1 . . . . . . Low Security (%) 97 | 100 100 100 . 100 80 100 98 100 . . . . 100 Level 1 2 | . . . . . 19 . 1 . . . . . . Level 2 . | . . . . . . . . . . . . . . Level 3 . | . . . . . . . . . . . . . . Level 4 . | . . . . . . . . . . . . . . Level 5 . | . . . . . . . . . . . . . . High Security . | . . . . . . . . . . . . . . Max Security . | . . . . . . . . . . . . . . Peak Influence 282 | 10 85 103 . . 282 190 214 134 . . . . 118 Initial 12 | . . . . . . . 5 12 . . . . . Average 34 | 3 19 19 . . 83 36 42 18 . . . . 9 Influence Increases 5965 | 40 236 163 . . 764 1369 934 700 450 511 15 110 673 Destroy 0b10 Robot/C 3240 | . 100 120 . . 520 700 520 240 220 360 . 100 360 Destroy 0b10 Robot/NC 510 | 40 35 15 . . 40 150 90 90 5 10 15 . 20 Destroy Leader 722 | . 22 20 . . 116 204 156 62 30 20 . 10 82 Allied During Kill 13 | . . 8 . . . 4 . . . 1 . . . Successful Hack 207 | . 34 . . . 37 56 28 26 . . . . 26 Disable Machine 189 | . . . . . 9 72 18 45 . . . . 45 Destroy Structure 364 | . . . . . 12 108 32 102 . . . . 110 Partial Spotted 45 | . 15 . . . . 30 . . . . . . . Lose Combat Pursuer 675 | . 30 . . . 30 45 90 135 195 120 . . 30 Influence Decreases 5945 | 40 236 100 63 . 764 1354 919 641 519 531 15 110 653 Entered New Map 138 | . . . 63 . . . 10 18 41 6 . . . Time Decay 4762 | 40 231 100 . . 524 1246 838 529 418 360 15 110 351 Lost Part 796 | . 5 . . . 90 60 71 83 40 145 . . 302 Lost Ally 88 | . . . . . . 48 . . 20 20 . . . Purge Threat 161 | . . . . . 150 . . 11 . . . . . Squads Dispatched 53 | . 1 . . 1 2 23 14 7 . 1 . . 4 Investigation 5 | . 1 . . . 1 1 1 1 . . . . . Extermination 21 | . . . . . . 7 7 3 . . . . 4 Reinforcement 19 | . . . . . 1 12 3 3 . . . . . Assault 2 | . . . . 1 . . . . . 1 . . . Garrison 6 | . . . . . . 3 3 . . . . . . Intercept . | . . . . . . . . . . . . . . Searches Triggered . | . . . . . . . . . . . . . . Construction Impeded 5 | . . . . . . 5 . . . . . . . Haulers Reinforced 5 | . . . . . . 1 2 2 . . . . . Active Scanning Responses . | . . . . . . . . . . . . . . Cargo Convoy Interrupts 1 | . . . . . . 1 . . . . . . . Stealth | -11 -10 -10 -10 -9 -8 -7 -6 -5 -5 -5 -5 -4 -4 --------- Run | Yrd Mat Min Exi Min Mat Fac Fac Fac Upp Upp Zhi Pro Fac Distress Signals 9 | . 1 . . . 1 2 5 . . . . . . Communications Jammed 42 | . . . . . . . . 18 . . . . 24 Distress Signals 42 | . . . . . . . . 18 . . . . 24 Times Spotted 310 | . 19 4 . 5 43 49 46 27 24 32 . 5 56 Peak Tracking Total 14 | . 4 3 . 5 8 6 7 8 5 14 . 4 9 Tactical Retreats 29 | . 1 . . . 2 3 6 6 4 5 . . 2 Traps | -11 -10 -10 -10 -9 -8 -7 -6 -5 -5 -5 -5 -4 -4 ------- Run | Yrd Mat Min Exi Min Mat Fac Fac Fac Upp Upp Zhi Pro Fac Traps Triggered 7 | . 1 . . . 1 1 2 . . . . . 2 Indirectly . | . . . . . . . . . . . . . . Trap Hack Attempts . | . . . . . . . . . . . . . . Triggered . | . . . . . . . . . . . . . . Disarmed 6 | . 6 . . . . . . . . . . . . Reprogrammed 4 | . . . . . 4 . . . . . . . . Reused . | . . . . . . . . . . . . . . Traps Extracted . | . . . . . . . . . . . . . . Installed . | . . . . . . . . . . . . . . Triggered . | . . . . . . . . . . . . . . Machines | -11 -10 -10 -10 -9 -8 -7 -6 -5 -5 -5 -5 -4 -4 ---------- Run | Yrd Mat Min Exi Min Mat Fac Fac Fac Upp Upp Zhi Pro Fac Machines Disabled 24 | . . . . . 1 8 2 5 1 . 1 1 5 Max in Single Turn 5 | . . . . . 1 5 1 2 1 . 1 1 1 Garrison Access 6 | . . . . . 1 2 2 1 . . . . . Machines Repaired . | . . . . . . . . . . . . . . Machines Dismantled . | . . . . . . . . . . . . . . Machines Sabotaged . | . . . . . . . . . . . . . . Overloaded Fab Kills . | . . . . . . . . . . . . . . Hacking | -11 -10 -10 -10 -9 -8 -7 -6 -5 -5 -5 -5 -4 -4 --------- Run | Yrd Mat Min Exi Min Mat Fac Fac Fac Upp Upp Zhi Pro Fac Machines Accessed 89 | . 9 . 2 . 13 20 9 16 1 . 8 . 11 Terminals 42 | . 7 . . . 9 8 5 6 . . . . 7 Fabricators 8 | . . . . . . 3 . 5 . . . . . Repair Stations 9 | . . . . . 1 3 2 2 . . . . 1 Recycling Units 9 | . 2 . . . 2 2 . 1 . . . . 2 Scanalyzers 4 | . . . . . . 2 . 1 . . . . 1 Garrison Access 6 | . . . . . 1 2 2 1 . . . . . Total Hacks 284 | . 33 . 2 . 43 46 28 44 1 . 47 . 40 Successful 197 | . 24 . 2 . 29 25 19 26 1 . 47 . 24 Failed 85 | . 9 . . . 14 20 9 18 . . . . 15 Catastrophic 4 | . 1 . . . 2 . . 1 . . . . . Database Lockouts 2 | . . . . . . 1 . . . . . . 1 Manual 107 | . 21 . 1 . 26 13 11 17 . . . 1 17 Terminals 147 | . 29 . . . 34 21 20 17 . . . . 26 Fabricators 18 | . . . . . . 5 . 13 . . . . . Repair Stations 26 | . . . . . 2 7 4 7 . . . . 6 Recycling Units 17 | . 4 . . . 4 3 . 3 . . . . 3 Scanalyzers 14 | . . . . . . 7 . 2 . . . . 5 Garrison Access 12 | . . . . . 3 3 4 2 . . . . . Terminal Hacks 103 | . 13 . 2 . 14 5 8 6 1 . 47 . 7 Record 38 | . . . 1 . 1 1 . . . . 35 . . Part Schematic 4 | . . . . . . . . . . . 4 . . Robot Analysis 5 | . . . . . . . 1 . . . 4 . . Prototype ID Bank 6 | . . . . . 1 1 . . . . 4 . . Open Door 1 | . . . . . . . . . 1 . . . . Level Access Points 4 | . 1 . . . . . 1 1 . . . . 1 Branch Access Points 4 | . 1 . . . 1 . . 1 . . . . 1 Emergency Access Points 5 | . 1 . . . 2 . . 1 . . . . 1 Machine Index 1 | . 1 . . . . . . . . . . . . Terminal Index 5 | . 1 . . . 1 . 1 1 . . . . 1 Fabricator Index 1 | . . . . . . . 1 . . . . . . Alert Level 1 | . . . . . . . . . . . . . 1 Unreport Threat 2 | . . . . . 1 . . 1 . . . . . Locate Traps 2 | . 1 . . . 1 . . . . . . . . Disarm Traps 1 | . 1 . . . . . . . . . . . . Reprogram Traps 1 | . . . . . 1 . . . . . . . . Dispatch Records 2 | . . . . . 1 1 . . . . . . . Security Status 2 | . . . . . . 1 . 1 . . . . . Patrol Status 1 | . 1 . . . . . . . . . . . . Transport Status 1 | . . . . . 1 . . . . . . . . Reinforcement Status 2 | . . . . . . . 2 . . . . . . Recall Investigation 1 | . 1 . . . . . . . . . . . . Recall Reinforcements 1 | . . . . . . . 1 . . . . . . Hauler Manifests 4 | . 2 . . . 1 . . . . . . . 1 Registered Components 2 | . 1 . . . . . 1 . . . . . . Zone Layout 5 | . 1 . . . 2 1 . . . . . . 1 Proto ID Catalog 1 | . . . 1 . . . . . . . . . . Fabricator Hacks 8 | . . . . . . 3 . 5 . . . . . Network Status 5 | . . . . . . 3 . 2 . . . . . Build 3 | . . . . . . . . 3 . . . . . Repair Station Hacks 21 | . . . . . 2 4 3 6 . . . . 6 Scan Component 11 | . . . . . 1 2 2 3 . . . . 3 Repair 10 | . . . . . 1 2 1 3 . . . . 3 Recycling Unit Hacks 2 | . 1 . . . . . . 1 . . . . . Retrieve Components 2 | . 1 . . . . . . 1 . . . . . Scanalyzer 9 | . . . . . . 4 . 1 . . . . 4 Insert Component 1 | . . . . . . . . . . . . . 1 Retrieve Study 8 | . . . . . . 4 . 1 . . . . 3 Garrison Access Hacks 6 | . . . . . 1 2 2 1 . . . . . Seal Access 6 | . . . . . 1 2 2 1 . . . . . Unauthorized Hacks 48 | . 10 . . . 12 7 6 6 . . . . 7 Terminals 34 | . 8 . . . 9 4 6 2 . . . . 5 Assimilate 5 | . . . . . 2 2 1 . . . . . . Botnet 14 | . 3 . . . 2 2 3 2 . . . . 2 Skim 15 | . 5 . . . 5 . 2 . . . . . 3 Fabricators 3 | . . . . . . 1 . 2 . . . . . Liberate 3 | . . . . . . 1 . 2 . . . . . Repair Stations . | . . . . . . . . . . . . . . Recycling Units 11 | . 2 . . . 3 2 . 2 . . . . 2 Reject 9 | . 2 . . . 2 2 . 1 . . . . 2 Recyclers 2 | . . . . . 1 . . 1 . . . . . Scanalyzers . | . . . . . . . . . . . . . . Garrison Access . | . . . . . . . . . . . . . . Data Cores Recovered . | . . . . . . . . . . . . . . Used . | . . . . . . . . . . . . . . Hacking Detections 63 | . 8 . . . 11 14 8 13 . . . . 9 Full Trace Events 3 | . . . . . . 1 1 1 . . . . . Feedback Events . | . . . . . . . . . . . . . . Feedback Blocked . | . . . . . . . . . . . . . . Robot Schematics Acquired . | . . . . . . . . . . . . . . Robots Built . | . . . . . . . . . . . . . . Authchips . | . . . . . . . . . . . . . . Time 152 | . . . . . . . . 152 . . . . . Total Robot Build Rating . | . . . . . . . . . . . . . . Part Schematics Acquired 4 | . . . . . . . . . . . 4 . . Parts Built 4 | . . . . . . . . 4 . . . . . Authchips . | . . . . . . . . . . . . . . Time 106 | . . . . . . . . 106 . . . . . Total Part Build Rating 24 | . . . . . . . . 24 . . . . . Part Studies Acquired 8 | . . . . . . 4 . 1 . . . . 3 Parts Repaired 10 | . . . . . 1 2 1 3 . . . . 3 Time 418 | . . . . . 32 76 22 138 . . . . 150 Parts Recycled . | . . . . . . . . . . . . . . Recycled Matter . | . . . . . . . . . . . . . . Retrieved Matter . | . . . . . . . . . . . . . . Retrieved Components 6 | . . . . . . . . 6 . . . . . Parts Scanalyzed . | . . . . . . . . . . . . . . Part Schematics Acquired . | . . . . . . . . . . . . . . Parts Damaged . | . . . . . . . . . . . . . . Bothacking | -11 -10 -10 -10 -9 -8 -7 -6 -5 -5 -5 -5 -4 -4 ------------ Run | Yrd Mat Min Exi Min Mat Fac Fac Fac Upp Upp Zhi Pro Fac Used RIF Installer . | . . . . . . . . . . . . . . Robots Hacked . | . . . . . . . . . . . . . . Non-combat . | . . . . . . . . . . . . . . Combat . | . . . . . . . . . . . . . . Robot Hacks Applied . | . . . . . . . . . . . . . . Relay Couplers Released 7 | . . . . . . 4 3 . . . . . . Programmers 7 | . . . . . . 4 3 . . . . . . Fabnet Peak Effective % . | . . . . . . . . . . . . . . Robots Rewired 3 | . . . . . . . . . 1 2 . . . Allies Hacked . | . . . . . . . . . . . . . . Hacks Repelled . | . . . . . . . . . . . . . . Allies | -11 -10 -10 -10 -9 -8 -7 -6 -5 -5 -5 -5 -4 -4 -------- Run | Yrd Mat Min Exi Min Mat Fac Fac Fac Upp Upp Zhi Pro Fac Total Allies 15 | . . 2 . 1 2 7 . . 1 2 . . . Largest Group 3 | . . 2 2 1 1 3 . . 1 1 1 1 . Highest-Rated Group 49 | . . 42 42 31 31 48 . . 49 30 29 29 . Highest-Rated Ally 49 | . . 31 31 31 31 22 . . 49 30 29 29 . Total Orders 4 | . . . . . . 1 . . 1 . . . 2 STAY 1 | . . . . . . 1 . . . . . . . EXPLORE 1 | . . . . . . . . . . . . . 1 RETURN 2 | . . . . . . . . . 1 . . . 1 Ally Attacks 75 | . . 4 . . 8 41 . . 2 18 . 2 . Total Damage 992 | . . 83 . . 65 495 . . 62 251 . 36 . Kills 14 | . . 3 . . 1 6 . . . 4 . . . Allies Corrupted 2 | . . . . . . . . . 1 1 . . . Allies Melted . | . . . . . . . . . . . . . . Intel | -11 -10 -10 -10 -9 -8 -7 -6 -5 -5 -5 -5 -4 -4 ------- Run | Yrd Mat Min Exi Min Mat Fac Fac Fac Upp Upp Zhi Pro Fac Active Infowar (turns) 16886 | . 724 637 307 99 1745 3843 2934 2168 866 785 447 543 1788 Optics 9871 | . . . . . . 3809 2934 2168 866 94 . . . Sensors 632 | . . . . . 632 . . . . . . . . Terrain 1952 | . 258 . . . . . . 317 842 32 . . 503 Structural 10851 | . . . . . 1745 2521 1856 1346 . 636 447 543 1757 Traps 5868 | . . . . . . 2144 1615 2038 . 71 . . . Seismic 2874 | . 466 637 307 99 1315 50 . . . . . . . Machine Analysis 4935 | . . . . . . 602 2934 1399 . . . . . Jamming 3746 | . . . . . . . 11 2109 . . . . 1626 ECM 2 | . . . . . . . 2 . . . . . . Robot Analysis Total 5 | . . . . . . . 1 . . . 4 . . Derelict Logs Recovered 6 | . . 1 . 1 . . . . 2 1 . 1 . Drone Launches 2 | . . . . . . . . . 1 . . . 1 Drone Recoveries 2 | . . . . . . . . . 1 . . . 1 Exploration | -11 -10 -10 -10 -9 -8 -7 -6 -5 -5 -5 -5 -4 -4 ------------- Run | Yrd Mat Min Exi Min Mat Fac Fac Fac Upp Upp Zhi Pro Fac Turns Passed 17381 | 125 765 637 307 99 1745 3843 2934 2168 866 872 447 644 1929 Spaces Moved 10228 | 70 492 399 240 107 773 2543 1460 1298 618 473 263 341 1151 Core 51 | 1 . . 2 . . . . . . . . . 48 Treads 9 | . 9 . . . . . . . . . . . . Legs 9100 | . . . 121 107 773 2543 1460 1298 618 473 263 341 1103 Wheels 1068 | 69 483 399 117 . . . . . . . . . . Hover . | . . . . . . . . . . . . . . Flight . | . . . . . . . . . . . . . . Fastest Speed 50 | 50 95 145 90 90 90 62 111 108 113 105 105 175 50 Average Speed 122 | 92 114 145 123 90 115 102 144 119 114 148 149 175 117 Slowest Speed 850 | 95 240 145 850 90 170 174 190 190 185 245 175 175 260 Overloaded Moves 32 | . . . . . . 32 . . . . . . . Propulsion Burnouts . | . . . . . . . . . . . . . . Robots Hopped . | . . . . . . . . . . . . . . Potential Cave-ins 15 | . . . . . . . 2 . . 13 . . . Cave-ins Triggered 2 | . . . . . . . . . . 2 . . . Teleports 1 | . . . . . . . . . . . 1 . . Exploration Rate (%) 57 | 4 89 86 61 40 73 66 42 38 86 71 62 56 28 Regions Visited 13 Branch Regions 7 Pre-discovered Areas 7 | . 1 . 1 . . . . . 1 . 3 1 . Known Exits Taken 6 | . 1 1 . . . 1 1 1 . . . 1 . Unknown Exits Taken 7 | 1 . . 1 1 1 . . . 1 1 1 . . Scrap Searched 8 | . . 1 . 2 . . . . 3 1 . 1 . Spaces Dug 129 | . . . . . 10 46 15 28 1 3 12 . 14 Terrain Destroyed 338 | . . . . . 11 121 35 53 27 15 12 5 59 Melee 99 | . . . . . . 43 12 27 . 3 . . 14 Projectile 148 | . . . . . 11 21 23 26 27 12 . 5 23 AOE 91 | . . . . . . 57 . . . . 12 . 22 Terrain Rammed . | . . . . . . . . . . . . . . Walls Destroyed . | . . . . . . . . . . . . . . Machines Disabled . | . . . . . . . . . . . . . . Actions | -11 -10 -10 -10 -9 -8 -7 -6 -5 -5 -5 -5 -4 -4 --------- Run | Yrd Mat Min Exi Min Mat Fac Fac Fac Upp Upp Zhi Pro Fac Total 13608 | 97 612 430 253 109 1388 3439 2026 1732 708 567 291 373 1583 Wait 1942 | . 60 9 . . 440 567 334 248 24 21 . 7 232 Move 10215 | 69 491 398 239 106 772 2542 1459 1297 617 472 262 340 1151 Hop . | . . . . . . . . . . . . . . Pick Up 141 | 5 4 8 4 2 18 19 20 16 8 10 1 5 21 Fast Attach 84 | 6 3 . 2 . 7 14 5 13 3 4 5 2 20 Attach 92 | . 1 . . . 9 8 8 9 7 15 . 2 33 Detach 33 | . 2 . 2 . 1 5 2 6 2 . 3 2 8 Swap 127 | 1 3 . . . 9 38 32 17 4 4 2 1 16 Drop 95 | . 3 . 6 . 13 24 15 16 1 . 1 5 11 Fire 628 | 16 45 15 . . 116 135 114 61 30 30 1 9 56 Melee 213 | . . . . . . 87 26 49 4 7 16 . 24 Ram 10 | . . . . . . . . . . . . . 10 Kick 11 | . . . . 1 3 . 6 . . . . . 1 Crush . | . . . . . . . . . . . . . . Escape Stasis 5 | . . . . . . . 5 . . . . . . Rewire 12 | . . . . . . . . . 8 4 . . . Trap . | . . . . . . . . . . . . . . Miscellaneous . | . . . . . . . . . . . . . . Route ------- -11/Scrapyard -10/Materials (discovered 6 exits: *Mat x3 / *Min x2 / Sub) -10/Mines (discovered 4 exits: *Mat x2 / *Exi / *Sub) -10/Exiles -9/Mines (discovered 2 exits: *Mat x2) -8/Materials (discovered 3 exits: *Fac x3) -7/Factory (discovered 5 exits: *Fac x3 / *Low x2) -6/Factory (discovered 4 exits: *Fac x4) -5/Factory (discovered 6 exits: *Fac x4 / *Upp x2) -5/Upper Caves -5/Upper Caves (discovered 2 exits: *Fac / *Zhi) -5/Zhirov -4/Proximity Caves -4/Factory (discovered 6 exits: *Res x4 / *Upp x2) History --------- Turn | Location | Event 22 | -11/Scrapyard | Discovered new exit (range 15) 126 | -11/Scrapyard | Entered Materials 188 | -10/Materials | Discovered new exit (range 14) 316 | -10/Materials | Build established: Mutant 407 | -10/Materials | Discovered new exit (range 16) 464 | -10/Materials | Identified exit to Materials 602 | -10/Materials | Identified exit to Mines 829 | -10/Materials | Loaded intel: 8 terminal locations 842 | -10/Materials | Learned location of 2 exits from Mines 844 | -10/Materials | Identified exit to Subcaves 857 | -10/Materials | Learned location of Mines (-9) 891 | -10/Materials | Entered Mines 893 | -10/Mines | Identified exit to Exiles 1023 | -10/Mines | Deemed a non-threat by the Exiles lab entrance 1273 | -10/Mines | Learned Materials emergency access door positions 1528 | -10/Mines | Entered Exiles 1528 | -10/Exiles | Accompanied by 2 allies 1558 | -10/Exiles | Led the pair of lost Derelicts to a safe place 1571 | -10/Exiles | Met 8R-AWN 1596 | -10/Exiles | Met EX-HEX 1638 | -10/Exiles | Met EX-BIN 1658 | -10/Exiles | Aligned with FarCom system 1660 | -10/Exiles | Given EX-Vault access code 1693 | -10/Exiles | Opened EX-Vault 1722 | -10/Exiles | Found Potential Leg 1725 | -10/Exiles | Found Potential Leg 1744 | -10/Exiles | Warned to stay clear of 0b10 Research branches 1773 | -10/Exiles | Met EX-DEC 1777 | -10/Exiles | Learned location of Zion (-6) 1827 | -10/Exiles | Discovered new exit (range 10) 1835 | -10/Exiles | Left Exiles lab with Potential Leg 1835 | -10/Exiles | Entered Mines 1846 | -9/Mines | Discovered new exit (range 15) 1884 | -9/Mines | A weapon hastily lodged in a ceiling crevice suddenly fell to the ground 1898 | -9/Mines | Met a Derelict testing a Signal Generator 1903 | -9/Mines | Discovered new exit (range 3) 1934 | -9/Mines | Entered Materials 1934 | -8/Materials | Accompanied by 1 ally 1934 | -8/Materials | Evolved 4 slots: Propulsion x1, Utility x3 2239 | -8/Materials | Build established: Skirmisher 2553 | -8/Materials | Destroyed 8 combat bots 2750 | -8/Materials | Discovered new exit (range 3) 2860 | -8/Materials | Core integrity fell below 50% 2873 | -8/Materials | Build established: Mutant 2928 | -8/Materials | Lost 5 parts (1p1n1u2w) 3101 | -8/Materials | Discovered new exit (range 14) 3190 | -8/Materials | Learned Storage stockpile data 3264 | -8/Materials | Repaired Hvy. Assault Rifle 3267 | -8/Materials | Learned Storage emergency access door positions 3307 | -8/Materials | Discovered new exit (range 5) 3387 | -8/Materials | Learned location of 2 exits from Factory 3431 | -8/Materials | Learned location of 1 exit from Extension 3465 | -8/Materials | Learned Storage garrison access intel 3511 | -8/Materials | Learned 2 Storage zone layouts 3568 | -8/Materials | Learned Storage trap positions 3635 | -8/Materials | Learned 2 Lower Caves zone layouts 3679 | -8/Materials | Entered Factory 3679 | -7/Factory | Accompanied by 1 ally 3679 | -7/Factory | Evolved 2 slots: Utility x2 3680 | -7/Factory | Identified exit to Lower Caves 3681 | -7/Factory | Identified exit to Factory 3933 | -7/Factory | Garrison activated, responded to threat 4406 | -7/Factory | Build established: Hacker-Assassin 4420 | -7/Factory | Cargo convoy interrupted 4606 | -7/Factory | Discovered exit to Factory (range 20) 4824 | -7/Factory | Build established: Hacker-Mutant 4876 | -7/Factory | Central database locked down 5324 | -7/Factory | Build established: Hacker-Assassin 5896 | -7/Factory | Repaired Imp. Titanium Leg+ 5929 | -7/Factory | Repaired Autogun? 6052 | -7/Factory | Found Powered Armor 7319 | -7/Factory | Lost 3 parts (1n2u) 7519 | -7/Factory | Core integrity fell below 50% 7522 | -7/Factory | Entered another Factory area 7522 | -6/Factory | Evolved 2 slots: Power x1, Propulsion x1 8223 | -6/Factory | Build established: Hacker-Skirmisher 8436 | -6/Factory | Discovered new exit (range 4) 8685 | -6/Factory | Repaired Adv. Assault Cannon 8740 | -6/Factory | Identified exit to Factory 9093 | -6/Factory | Garrison activated, responded to threat 9444 | -6/Factory | Lost 5 parts (2p1n2u) 9979 | -6/Factory | Build established: Hacker-Assassin 10456 | -6/Factory | Entered another Factory area 10456 | -5/Factory | Evolved 2 slots: Propulsion x1, Weapon x1 10637 | -5/Factory | Repaired Hrd. Medium Armor Plating 10688 | -5/Factory | Repaired Arm. Leg 10740 | -5/Factory | Repaired Arm. Leg 10925 | -5/Factory | Discovered new exit (range 5) 10931 | -5/Factory | Discovered new exit (range 14) 11042 | -5/Factory | Identified exit to Upper Caves 11042 | -5/Factory | Identified exit to Factory 11175 | -5/Factory | Fabricated Imp. Corruption Screen? 12031 | -5/Factory | Fabricated Lrn. Proton Cannon? 12353 | -5/Factory | Spotted B-75 Beast 12596 | -5/Factory | Lost 4 parts (1p2u1w) 12624 | -5/Factory | Entered Upper Caves 12628 | -5/Upper Caves | Learned 4 Factory zone layouts 12869 | -5/Upper Caves | Build established: Hacker-Mutant 12890 | -5/Upper Caves | Attracted the attention of an 0b10 outpost 13036 | -5/Upper Caves | System corruption reached 10% 13110 | -5/Upper Caves | Spotted B-75 Beast 13176 | -5/Upper Caves | Build established: Hacker-Skirmisher 13231 | -5/Upper Caves | Lost 3 parts (1n1u1w) 13386 | -5/Upper Caves | Discovered new exit (range 21) 13490 | -5/Upper Caves | Entered another Upper Caves area 13501 | -5/Upper Caves | Discovered exit to Factory (range 3) 13523 | -5/Upper Caves | Attracted the attention of an 0b10 outpost 13576 | -5/Upper Caves | Crushed by falling debris 13596 | -5/Upper Caves | Destroyed 7 combat bots 13615 | -5/Upper Caves | Crushed by falling debris 13615 | -5/Upper Caves | Core integrity fell below 50% 13677 | -5/Upper Caves | Lost 15 parts (2p3n7u3w) 13938 | -5/Upper Caves | Build established: Hacker-Gunner 14219 | -5/Upper Caves | Attracted the attention of an 0b10 checkpoint 14328 | -5/Upper Caves | Learned Factory security intel 14348 | -5/Upper Caves | Discovered new exit (range 14) 14362 | -5/Upper Caves | Entered Zhirov 14362 | -5/Zhirov | Accompanied by 1 ally 14362 | -5/Zhirov | Discovered new exit (range 3) 14410 | -5/Zhirov | Met Zhirov 14448 | -5/Zhirov | Found Alien Artifact 14448 | -5/Zhirov | Identified Integrated Dissipator 14448 | -5/Zhirov | Installed Integrated Dissipator, increased core heat dissipation (+20) 14499 | -5/Zhirov | Found Alien Artifact 14499 | -5/Zhirov | Identified Transdimensional Reconstructor 14499 | -5/Zhirov | Warped through subspace 14583 | -5/Zhirov | Learned location of Quarantine (-2) 14583 | -5/Zhirov | Learned location of Testing (-3) 14583 | -5/Zhirov | Learned location of Command (-1) 14593 | -5/Zhirov | Zhirov requested help retrieving the SGEMP Prototype 14809 | -5/Zhirov | Entered Proximity Caves 14809 | -4/Proximity Caves | Accompanied by 1 ally 15027 | -4/Proximity Caves | Attracted the attention of an 0b10 checkpoint 15139 | -4/Proximity Caves | Build established: Hacker-Tank 15303 | -4/Proximity Caves | Acquired the password to a Derelict Tinkerer's latest research 15314 | -4/Proximity Caves | Found Prototype Special Weapon 15432 | -4/Proximity Caves | Discovered exit to Factory (range 13) 15448 | -4/Proximity Caves | Learned location of Armory (-3) 15453 | -4/Proximity Caves | Entered Factory 15453 | -4/Factory | Evolved 2 slots: Utility x2 15553 | -4/Factory | Lost 6 parts (1p2n1u2w) 15559 | -4/Factory | Destroyed 13 combat bots 15705 | -4/Factory | Central database locked down 15862 | -4/Factory | Repaired Arm. Leg+ 15883 | -4/Factory | Build established: Hacker-Mutant 15913 | -4/Factory | Repaired Arm. Leg+ 15965 | -4/Factory | Repaired Arm. Leg+ 15973 | -4/Factory | Identified exit to Upper Caves 16309 | -4/Factory | Build established: Hacker-Assassin 16549 | -4/Factory | Lost 4 parts (2u2w) 16694 | -4/Factory | Identified exit to Research 16950 | -4/Factory | Lost 3 parts (1p2u) 17236 | -4/Factory | Identified Molecular Deconstructor 17266 | -4/Factory | Lost 13 parts (3p4n4u2w) 17346 | -4/Factory | Released all parts (9) 17350 | -4/Factory | Core integrity fell below 50% 17372 | -4/Factory | Core integrity fell below 20% 17377 | -4/Factory | Lost 11 parts (2p6n2u1w) 17382 | -4/Factory | Destroyed by S-27 Virus with Autogun Last Messages --------------- 17351_ K-01 Serf collects debris. 17351_ U-05 Engineer builds a Wall. 17352_ Dropped Adv. Drone Bay. 17353_ Penetrated by Slug. 17353_ Slug penetrates Construction Platform. 17353_ Penetrated by Slug. 17354_ Acquired Unknown Wheel. 17356_ Slug penetrates Wall. 17361_ Slammed into S-27 Virus. 17361_ Destabilizing: Core damaged (-57). 17362_ Slammed into S-27 Virus. 17362_ S-27 Virus destroyed. 17363_ Slammed into S-27 Virus. 17369_ Construction Platform disabled. 17369_ Slammed into G-67 Veteran. 17371_ Destabilizing: System corrupted (+2). 17372_ Slug penetrates Wall. 17373_ Penetrated by Slug. 17374_ System corrupted: Matter fused (-10). 17376_ Penetrated by Slug. Map ----- +----------------------------------------------------+ | # # ?????????????? # "" "" #? | | % # # ?????????????? # """ """ #? | | % +% # ?????????????? # """ """ #? | | %# # ?????????????? # """ """ #? | | % # # ?????????????? # #? | | ]]!%# ######## ?????????????? ############## | | ]! %# ########???????????????########## | | ]! #% ##????????????????????? # | | !*# ##?????????????????????" """" # """ | | ###### ##?????????????????????" """" # """ | | # ##?????????????????????" """" + """ | | # ##?????????????????????" """" # | | = # #######????????????????" """" # """ | | = [ # ### ????????????????" """" # """ | | ! # ### ???????????????? # """ | | !#![! ### ????????????????#####+#### | | #!/![ # # """"???????????? # """ | | [+[==] ### """"#??????????? # """ | | #!=!* ### """"#??????????? # """ | | #=!! ### """"#??????????? # | | ## ### """"#??????????? + """ | | # ## =%*##?? ????????????? ## """ | | ##### ######+##??????######+#### """ | | ##### ####### ### | | s k """ | | [ s sw @ ????????? | | p g#### ## ????????? | | ##### Y #### """""" #?????????????????? | | ??######g#####?# """""" !!!#?????????????????? | | ??# %%! ##?# """""" !!!#?????????????????? | | ??#] % #??# """""" !! #?????????????????? | | ??# #??# #?????????????????? | | ??#% """""" #??# !! #?????????????????? | | ??#%""""""" #??# ??!] #?????????????????? | | ??#%""""""" #??# ??!] #?????????????????? | | ??#=""""""" #??# ? +?????????????????? | | ??#%% #??# ?? #?????????????????? | | ??###########??# ????? #?????????????????? | | ???????????????######??????? #?????????????????? | | ????????????????????????????? ???????????????????? | | ?????????????????????????????????????????????????? | | ?????????????????????????????????????????????????? | | ?????????????????????????????????????????????????? | | ?????????????????????????????????????????????????? | | ?????????????????????????????????????????????????? | | ?????????????????????????????????????????????????? | | ?????????????????????????????????????????????????? | | ?????????????????????????????????????????????????? | | ?????????????????????????????????????????????????? | | ?????????????????????????????????????????????????? | +----------------------------------------------------+ Best States ------------- Heat Dissipation 90 Energy Generation 38 Energy Capacity 400 Matter Stores 469 Matter Capacity 600 Sight Range 22 Robot Scan Range 14 Terrain Scan Range 16 Terrain Scan Density 10 Jamming Range 16 Base Temperature (-) 200 Armor Coverage 775 Resistance: KI 45 Resistance: TH 20 Resistance: EX 20 Resistance: EM 20 Resistance: I 20 Resistance: S 20 Resistance: P 20 Core Shielding 40 Propulsion Shielding 66 Utility Shielding 66 Evasion (%) 70 Targeting Accuracy 24 Target Analysis 9 Recoil Reduction 1 Matter Filtering 30 Offensive Hacking 34 Defensive Hacking 10 Authchip Count 2 Item Schematics ----------------- Assault Drone Bay | -5/Zhirov | Free Exp. Heat Sink | -5/Zhirov | Free Exp. Optical Array | -5/Zhirov | Free Imp. Arc Thrower | -5/Zhirov | Free Robot Schematics ------------------ None Fabricated ------------ Imp. Corruption Screen | x2 | -5/Factory | Preloaded Lrn. Proton Cannon | x2 | -5/Factory | Preloaded Repaired ---------- Hvy. Assault Rifle | 45% | -8/Materials Imp. Titanium Leg | 77% | -7/Factory Autogun | 49% | -7/Factory Adv. Assault Cannon | 27% | -6/Factory Hrd. Medium Armor Plating | 11% | -5/Factory Arm. Leg | 26% | -5/Factory Arm. Leg | 32% | -5/Factory Arm. Leg | 51% | -4/Factory Arm. Leg | 55% | -4/Factory Arm. Leg | 65% | -4/Factory Studied --------- Imp. Titanium Leg | -7/Factory | Hacked Grenade Launcher | -7/Factory | Hacked Hvy. Assault Rifle | -7/Factory | Hacked VSS Leg | -7/Factory | Hacked Arm. Leg | -5/Factory | Hacked Flexi-carbon Leg | -4/Factory | Hacked Lgt. Nuclear Core | -4/Factory | Hacked Chainsword | -4/Factory | Hacked Alien Tech Used ----------------- Integrated Dissipator Transdimensional Reconstructor Achievements -------------- Botjacking Infodabbler Jackpot Professional Mechanic Recruitment Drive Sprinter Subspace Traveler The Science Guy Challenges ------------ None Game ------ Seed TiamatTitaniumCore Manual? 0 Play Time 03:54:34 Cumulative 126.2 hours Start 2025.11.09 @ 17:41:21 End 2025.11.16 @ 17:59:50 Sessions 13 Manual Loads 0 Difficulty Adventurer Special Mode None Game No. 52 Rogue 0 Adventurer 48 Explorer 4 Win Type - Total 1 Types 1/0/0/0/0/0/0/0/0/0 Lore% 37 Gallery% 45 Achievement% 32 Wizard Run 0 Options --------- Layout 0 ASCII 0 Keyboard 0 Movement Numpad Keybinds 0 Fullscreen 2 Font 36/Smallcaps Map View 76x50 Zoom Use 0% Tactical HUD 1 Map Filters NONE Filters NONE Steam 1 RUN: 60aba1f0-78b0-4c74-a225-8ab76a0b4439